Cogmind - Beta 10.2 @@@ ROGUE MODE // 2021.05.07 @ 19:16:51 Player: Trantor Result: Destroyed by Y-45 Defender with Beam Rifle Performance ------------- Evolutions (1) 500 Regions Visited (3) 600 Robots Destroyed (21) 105 Value Destroyed (440) 440 Prototype IDs (0) 0 Alien Tech Used (0) 0 Bonus (0) 0 TOTAL SCORE: 1645 Bonus ------- None Cogmind --------- Core Integrity 0/400 Matter 108/300 Energy 100/100 System Corruption 5% Temperature Cool (18) Movement Core (550) Ox10 Location -9/Materials Parts ------- > --- POWER (1) -------- (None) > --- PROPULSION (2) --- (None) > --- UTILITY (4) ------ Large Storage Unit Large Storage Unit > --- WEAPON (2) ------- (None) > --- INVENTORY (16) --- Ion Engine Light Nuclear Core Hacking Suite Assault Rifle Autogun Autogun Autogun Autogun Grenade Launcher Peak State ------------ > --- POWER ------------ Ion Engine > --- PROPULSION ------- Wheel Wheel > --- UTILITY ---------- Large Storage Unit Large Storage Unit Sensor Array Light Armor Plating > --- WEAPON ----------- EM Shotgun Autogun > --- INVENTORY -------- Ion Engine Light Nuclear Core Hacking Suite EM Pulse Gun EM Pulse Gun Assault Rifle Autogun Autogun Autogun Grenade Launcher [Rating: 12] Favorites ----------- Power Ion Engine Engine Ion Engine Propulsion Wheel Wheel Wheel Utility Large Storage Unit Device Sensor Array Storage Large Storage Unit Protection Light Armor Plating Weapon EM Pulse Gun Energy Gun EM Pulse Gun Energy Cannon Beam Cannon Ballistic Gun Autogun Launcher Grenade Launcher Build | -11 -10 -10 -9 ------- Run | Scr Mat Min Mat Slots Evolved 2 | . . . 2 Power . | . . . . Propulsion . | . . . . Utility 2 | . . . 2 Weapon . | . . . . Parts Attached 34 | 7 14 7 6 Power 2 | 1 . 1 . Engine 2 | 1 . 1 . Core . | . . . . Reactor . | . . . . Propulsion 9 | 2 4 2 1 Treads . | . . . . Leg . | . . . . Wheel 9 | 2 4 2 1 Hover . | . . . . Flight . | . . . . Utility 5 | 1 2 . 2 Device 1 | . . . 1 Storage 3 | 1 2 . . Processor . | . . . . Hackware . | . . . . Protection 1 | . . . 1 Artifact . | . . . . Weapon 18 | 3 8 4 3 Energy Gun 10 | 3 3 1 3 Energy Cannon 2 | . 2 . . Ballistic Gun 3 | . 2 1 . Ballistic Cannon . | . . . . Launcher 3 | . 1 2 . Special Weapon . | . . . . Impact Weapon . | . . . . Slashing Weapon . | . . . . Piercing Weapon . | . . . . Special Melee Weapon . | . . . . Unidentified Prototypes . | . . . . Parts Lost 16 | . 2 5 9 Power 2 | . . 1 1 Propulsion 6 | . 1 3 2 Utility 2 | . . . 2 Weapon 6 | . 1 1 4 Highest Loss Streak 9 | . 1 4 9 Average Slot Usage (%) 96 | . 99 94 89 Engine 12 | . 14 12 9 Wheel 25 | . 28 24 18 Device 1 | . . . 9 Storage 26 | . 27 28 22 Protection 1 | . . . 9 Energy Gun 12 | . 15 1 10 Energy Cannon 3 | . 5 . . Ballistic Gun 7 | . 4 18 9 Launcher 2 | . 2 7 . Naked Turns . | . . . . Heaviest Build 47 | 12 42 43 47 Greatest Support 26 | 26 26 20 20 Greatest Overweight (x) 12 | 2 4 4 12 Average Overweight (x) 1 | . 1 2 2 Largest Inventory Capacity 16 | 6 16 16 16 Average Capacity 15 | 5 15 16 16 Most Carried 16 | 4 16 16 11 Average Carried 12 | 2 13 15 9 Final Capacity 16 | 6 16 16 16 Final Carried 16 | 4 16 12 9 Class Distribution -------------------- 100% | Mutant Dominant Class ---------------- Mutant | -10/Materials Mutant | -10/Mines Mutant | -9/Materials Resources | -11 -10 -10 -9 ----------- Run | Scr Mat Min Mat Matter Collected 572 | 202 250 40 80 Remotely . | . . . . Salvage Created 705 | . 522 43 140 Parts 48 | . 43 . 5 Haulers Intercepted 2 | . 2 . . Recyclers Shooed . | . . . . Parts Field Recycled . | . . . . Retrieved Matter . | . . . . Parts Self-Destructed . | . . . . Prevented . | . . . . Kills | -11 -10 -10 -9 ------- Run | Scr Mat Min Mat Combat Hostiles Destroyed 29 | . 12 14 3 Guns 13 | . 5 5 3 Cannons 4 | . 4 . . AOE 12 | . 3 9 . Classes Destroyed 8 | . 6 1 1 Worker 2 | . 2 . . Tunneler 1 | . 1 . . Hauler 2 | . 2 . . Operator 1 | . 1 . . Swarmer 6 | . 6 . . Grunt 8 | . 6 . 2 Brawler 1 | . . . 1 Assembled 14 | . . 14 . Best Kill Streak 6 | . 3 6 3 Combat Bots Only 6 | . 3 6 3 Max Kills in Single Turn 3 | . 3 2 1 Gunslinging . | . . . . Exploded 3 | . 3 2 . Melee . | . . . . Uniques/NPCs Destroyed . | . . . . Combat | -11 -10 -10 -9 -------- Run | Scr Mat Min Mat Damage Taken 2065 | . 285 696 1084 Core 647 | . 87 153 407 Absorbed by Shields . | . . . . Core Remaining (%) 52 | 100 . 4 . Volleys Fired 76 | . 32 29 15 Largest 2 | . 2 2 2 Hottest 110 | . 110 53 80 Shots Fired 130 | . 64 49 17 Gun 95 | . 41 37 17 Cannon 20 | . 20 . . Launcher 15 | . 3 12 . Special . | . . . . Kinetic 46 | . 9 37 . Thermal 21 | . 21 . . Explosive 15 | . 3 12 . Electromagnetic 48 | . 31 . 17 Robot Hit Streak 9 | . 5 4 9 Robot Miss Streak 4 | . 4 4 2 Penetration Max . | . . . . Secondary Targets 1 | . . 1 . Max Gunslinging Chain 1 | . . 1 . Shots Hit Robots 67 | . 29 22 16 Core Hits 66 | . 25 32 9 Critical Hits 1 | . . 1 . Critical Kills 1 | . . 1 . Critical Parts Destroyed . | . . . . Melee Attacks . | . . . . Impact . | . . . . Slashing . | . . . . Piercing . | . . . . Sneak Attacks . | . . . . Combat Hostiles . | . . . . Follow-up Attacks . | . . . . Damage Inflicted 1948 | . 695 1020 233 Guns 818 | . 310 275 233 Cannons 178 | . 178 . . Explosions 920 | . 196 724 . Melee . | . . . . Ramming 32 | . 11 21 . Kinetic 299 | . 24 275 . Thermal 191 | . 191 . . Explosive 920 | . 196 724 . Electromagnetic 506 | . 273 . 233 Impact . | . . . . Slashing . | . . . . Piercing . | . . . . Highest Corruption 5 | . . 2 5 Average Corruption 3 | . . 1 4 Corruption Purged . | . . . . Overload Shots . | . . . . Overflow Damage 17 | . 10 7 . Projectiles . | . . . . Explosions 17 | . 10 7 . Melee . | . . . . Knockbacks . | . . . . Impact . | . . . . Kinetic . | . . . . Secondary . | . . . . Self-Inflicted Damage 122 | . 88 34 . Shots 5 | . 3 2 . Rammed 6 | . 1 5 . Targets Rammed 6 | . 1 5 . Kicked . | . . . . Crushed . | . . . . Highest Temperature 258 | . 258 30 168 Average Temperature 50 | . 62 10 63 Received Heat Transfer 554 | . 42 80 432 Siege Activations . | . . . . Robots Corrupted . | . . . . Combat Hostiles . | . . . . Parts Fried 1 | . 1 . . Impact Corruptions . | . . . . Robots Melted . | . . . . Combat Hostiles . | . . . . Parts Melted 1 | . 1 . . Heat Transferred 407 | . 407 . . Parts Sabotaged . | . . . . Parts Stolen . | . . . . Parts Stripped . | . . . . Power Chain Reactions . | . . . . Missiles Intercepted . | . . . . Alert | -11 -10 -10 -9 ------- Run | Scr Mat Min Mat Peak Influence 247 | . 247 61 59 Initial 61 | . . 61 9 Average 80 | . 105 54 21 Maximum Alert Level 1 | . 1 . . Low Security (%) 94 | 100 91 100 100 Level 1 5 | . 8 . . Level 2 . | . . . . Level 3 . | . . . . Level 4 . | . . . . Level 5 . | . . . . High Security . | . . . . Max Security . | . . . . Squads Dispatched 3 | . 3 . . Investigation 2 | . 2 . . Extermination . | . . . . Reinforcement 1 | . 1 . . Assault . | . . . . Garrison . | . . . . Intercept . | . . . . Construction Impeded . | . . . . Haulers Reinforced . | . . . . Stealth | -11 -10 -10 -9 --------- Run | Scr Mat Min Mat Distress Signals 2 | . 1 . 1 Communications Jammed . | . . . . Distress Signals . | . . . . Times Spotted 62 | . 29 22 11 Peak Tracking Total 7 | . 4 6 7 Tactical Retreats 5 | . 1 3 1 Traps | -11 -10 -10 -9 ------- Run | Scr Mat Min Mat Traps Triggered 1 | . 1 . . Indirectly . | . . . . Trap Hack Attempts . | . . . . Triggered . | . . . . Disarmed . | . . . . Reprogrammed . | . . . . Reused . | . . . . Traps Extracted . | . . . . Installed . | . . . . Triggered . | . . . . Machines | -11 -10 -10 -9 ---------- Run | Scr Mat Min Mat Machines Disabled 3 | . 3 . . Max in Single Turn 1 | . 1 . . Machines Sabotaged . | . . . . Garrisons Compromised . | . . . . Overloaded Fab Kills . | . . . . Fab Network Shutdowns . | . . . . Hacking | -11 -10 -10 -9 --------- Run | Scr Mat Min Mat Machines Accessed 5 | . 5 . . Terminals 5 | . 5 . . Fabricators . | . . . . Repair Stations . | . . . . Recycling Units . | . . . . Scanalyzers . | . . . . Garrison Access . | . . . . Total Hacks 12 | . 12 . . Successful 2 | . 2 . . Failed 10 | . 10 . . Catastrophic 4 | . 4 . . Database Lockouts . | . . . . Manual 13 | . 13 . . Terminals 12 | . 12 . . Fabricators . | . . . . Repair Stations . | . . . . Recycling Units . | . . . . Scanalyzers . | . . . . Garrison Access . | . . . . Terminal Hacks 2 | . 2 . . Robot Analysis 2 | . 2 . . Fabricator Hacks . | . . . . Repair Station Hacks . | . . . . Recycling Unit Hacks . | . . . . Scanalyzer . | . . . . Garrison Access Hacks . | . . . . Unauthorized Hacks . | . . . . Terminals . | . . . . Fabricators . | . . . . Repair Stations . | . . . . Recycling Units . | . . . . Scanalyzers . | . . . . Garrison Access . | . . . . Data Cores Recovered . | . . . . Used . | . . . . Hacking Detections 5 | . 5 . . Full Trace Events 3 | . 3 . . Feedback Events . | . . . . Feedback Blocked . | . . . . Robot Schematics Acquired . | . . . . Robots Built . | . . . . Matter . | . . . . Time . | . . . . Total Robot Build Rating . | . . . . Part Schematics Acquired . | . . . . Parts Built . | . . . . Matter . | . . . . Time . | . . . . Total Part Build Rating . | . . . . Parts Repaired . | . . . . Time . | . . . . Parts Recycled . | . . . . Recycled Matter . | . . . . Retrieved Matter . | . . . . Retrieved Components . | . . . . Parts Scanalyzed . | . . . . Part Schematics Acquired . | . . . . Parts Damaged . | . . . . Bothacking | -11 -10 -10 -9 ------------ Run | Scr Mat Min Mat Used RIF Installer . | . . . . Robots Hacked . | . . . . Non-combat . | . . . . Combat . | . . . . Robot Hacks Applied . | . . . . Relay Couplers Released . | . . . . Robots Rewired . | . . . . Allies Hacked . | . . . . Hacks Repelled . | . . . . Allies | -11 -10 -10 -9 -------- Run | Scr Mat Min Mat Total Allies . | . . . . Largest Group . | . . . . Highest-Rated Group . | . . . . Highest-Rated Ally . | . . . . Total Orders . | . . . . Ally Attacks . | . . . . Total Damage . | . . . . Kills . | . . . . Allies Corrupted . | . . . . Allies Melted . | . . . . Intel | -11 -10 -10 -9 ------- Run | Scr Mat Min Mat Robot Analysis Total 2 | . 2 . . Derelict Logs Recovered 1 | . . 1 . Drone Launches . | . . . . Drone Recoveries . | . . . . Exploration | -11 -10 -10 -9 ------------- Run | Scr Mat Min Mat Turns Passed 1747 | 53 1148 228 318 Spaces Moved 1316 | 41 972 136 167 Core 19 | 11 . . 8 Treads . | . . . . Legs . | . . . . Wheels 1297 | 30 972 136 159 Hover . | . . . . Flight . | . . . . Fastest Speed 50 | 50 90 90 100 Average Speed 102 | 93 99 102 122 Slowest Speed 650 | 150 120 120 650 Overloaded Moves . | . . . . Propulsion Burnouts . | . . . . Robots Hopped . | . . . . Cave-ins Triggered . | . . . . Exploration Rate (%) 34 | 3 94 31 8 Regions Visited 3 Branch Regions 1 Pre-discovered Areas . | . . . . Known Exits Taken . | . . . . Unknown Exits Taken 3 | 1 1 1 . Scrap Searched . | . . . . Spaces Dug . | . . . . Terrain Destroyed 110 | . 20 90 . Melee . | . . . . Projectile . | . . . . AOE 110 | . 20 90 . Terrain Rammed . | . . . . Walls Destroyed . | . . . . Machines Disabled . | . . . . Actions | -11 -10 -10 -9 --------- Run | Scr Mat Min Mat Total 1596 | 51 1098 179 268 Wait 117 | . 35 3 79 Move 1313 | 40 971 135 167 Hop . | . . . . Pick Up 28 | 4 23 . 1 Fast Attach 12 | 6 6 . . Attach 10 | . 1 4 5 Detach 3 | . 3 . . Swap 12 | 1 7 3 1 Drop 19 | . 19 . . Fire 76 | . 32 29 15 Melee . | . . . . Ram 6 | . 1 5 . Kick . | . . . . Crush . | . . . . Escape Stasis . | . . . . Rewire . | . . . . Trap . | . . . . Miscellaneous . | . . . . Route ------- -11/Scrapyard -10/Materials (discovered 5 exits: [*Mat x3] / [*Min x2]) -10/Mines -9/Materials (discovered 1 exit: Sto) History --------- Turn | Location | Event 24 | -11/Scrapyard | Discovered new exit (range 15) 54 | -11/Scrapyard | Entered Materials 224 | -10/Materials | Discovered new exit (range 16) 304 | -10/Materials | Build established: Mutant 358 | -10/Materials | Discovered new exit (range 6) 477 | -10/Materials | Discovered new exit (range 14) 648 | -10/Materials | Discovered new exit (range 16) 860 | -10/Materials | Discovered new exit (range 16) 1202 | -10/Materials | Entered Mines 1207 | -10/Mines | Assembled infested the area 1257 | -10/Mines | Core integrity fell below 50% 1412 | -10/Mines | Core integrity fell below 20% 1417 | -10/Mines | Discovered new exit (range 9) 1430 | -10/Mines | Entered Materials 1430 | -9/Materials | Evolved 2 slots: Utility x2 1431 | -9/Materials | Identified exit to Storage 1454 | -9/Materials | Lost 4 parts (1p2n1w) 1722 | -9/Materials | Core integrity fell below 50% 1743 | -9/Materials | Core integrity fell below 20% 1745 | -9/Materials | Lost 9 parts (1p2n2u4w) 1748 | -9/Materials | Destroyed by Y-45 Defender with Beam Rifle Last Messages --------------- 01698_ R-06 Scavenger collects Aluminum Leg. 01700_ K-01 Serf collects debris. 01702_ Sensor Array destroyed. 01702_ System corrupted by crushing effect (+2). 01702_ K-01 Serf collects debris. 01703_ B-36 Bruiser destroyed. 01703_ EM Pulse Gun destroyed. 01703_ R-06 Scavenger collects Lgt. Treads. 01705_ K-01 Serf collects debris. 01706_ G-34 Mercenary destroyed. 01707_ R-06 Scavenger collects Sml. Laser. 01708_ G-47 Trooper IFF system glitched. 01708_ Acquired 44 matter. 01708_ K-01 Serf collects debris. 01714_ EM Pulse Gun destroyed. 01714_ Lgt. Armor Plating destroyed. 01714_ Acquired 36 matter. 01716_ K-01 Serf collects debris. 01733_ Y-45 Defender IFF system glitched. 01735_ K-01 Serf collects debris. Map ----- +----------------------------------------------------+ | ?????????????????????????????????????????????????? | | ?????????????????????????????????????????????????? | | ?????????????????????????????????????????????????? | | ?????????????????????????????????????????????????? | | ?????????????????????????????????????????????????? | | ??????????????????????????????????????????????? | | ??????????????????????????????????????????????? | | ??????????????????????????????????????????????? | | ??????????????????????????????????????????????? | | ??????????????????????????????????????????????? | | ??????????????????????????????????????????????? | | ??????????????????????????????????????????????? | | ??????????????????????????????????????????????? | | ??????????????????????????????????????????????? | | ??????????????????????????????????????????????? | | ???????????????????????????????????????????????# # | | ?????????????????????????????#####+#####???????# # | | ?????????????????????????????# #???????# # | | ??????????? ?????????????????# #???????# # | | ??????????? + ???????????????# #???????# # | | ????????????# ??????????????# #????####+# | | ????????????# #####????????# #????# | | ????????????# ######### ######** | | ????????????# u %+ + +* | | ????????????# # ###### | | ????????????# @ ################ | | ????????????# ### ggY + | | ??????????????????# ###/########################## | | ??????????????????#?# #?????????????????????? | | ????????????????????# %* " #?????????????????????? | | ????????????????????#=* "" #?????????????????????? | | ????????????????????#% """ #?????????????????????? | | ????????????????????# #?????????????????????? | | ????????????????????# #?????????????????????? | | ????????????????????########?????????????????????? | | ?????????????????????????????????????????????????? | | ?????????????????????????????????????????????????? | | ?????????????????????????????????????????????????? | | ?????????????????????????????????????????????????? | | ?????????????????????????????????????????????????? | | ?????????????????????????????????????????????????? | | ?????????????????????????????????????????????????? | | ?????????????????????????????????????????????????? | | ?????????????????????????????????????????????????? | | ?????????????????????????????????????????????????? | | ?????????????????????????????????????????????????? | | ?????????????????????????????????????????????????? | | | | | | | +----------------------------------------------------+ Best States ------------- Heat Dissipation 28 Energy Generation 10 Energy Capacity 250 Matter Stores 300 Matter Capacity 300 Sight Range 16 Robot Scan Range 10 Terrain Scan Density 10 Armor Coverage 150 Evasion (%) 42 Item Schematics ----------------- None Robot Schematics ------------------ None Fabricated ------------ Nothing Alien Tech Used ----------------- None Achievements -------------- None Challenges ------------ None Game ------ Seed DynamicDisruptionMaul Manual? 0 Play Time 00:24:06 Cumulative 79.4 hours Start 2021.05.07 @ 18:55:37 End 2021.05.07 @ 19:16:51 Sessions 1 Manual Loads 0 Difficulty Rogue Special Mode None Game No. 49 Rogue 34 Adventurer 15 Explorer 0 Win Type - Total 0 Types 0/0/0/0/0/0/0/0/0 Lore% 37 Gallery% 36 Achievement% 32 Wizard Run 0 Options --------- ASCII 0 Keyboard 1 Movement Vi Keybinds 1 Fullscreen 2 Font 18/SmallcapsGlow Map View 76x50 Tactical HUD 1 Map Filters NONE Filters NONE Steam 1 RUN: 1a21f65a-ca16-497c-8ff7-87058315d763